bitfinex/quotes_SOLUSD_20240711
["timestamp","ask_amount","ask_price","bid_price","bid_amount"]
[1720660873433,11.81,141.31,141.27,1.08150444]
[1720660873637,11.81,141.32,141.27,12.89150444]
[1720660873857,11.81,141.32,141.28,45.0]
[1720660874030,11.81,141.32,141.29,0.91137541]
[1720660874229,11.81,141.32,141.3,0.91131091]
[1720660874440,11.81,141.32,141.29,0.91131091]
[1720660874637,11.81,141.31,141.3,0.91296267]
[1720660874824,11.81,141.31,141.29,0.91296268]
[1720660875748,11.81,141.32,141.29,0.91296268]
[1720660875949,11.81,141.32,141.3,0.91289806]
[1720660876245,11.81,141.32,141.29,1.4152306]
[1720660876469,11.81,141.32,141.3,1.41513044]
[1720660876654,16.4812,141.36,141.3,1.41513044]
[1720660876830,6.603,141.37,141.31,0.51]
[1720660877153,11.81,141.35,141.31,0.51]
[1720660877358,11.81,141.35,141.3,56.81]
[1720660877653,11.81,141.34,141.3,45.0]
[1720660878256,11.81,141.34,141.31,0.63170903]
[1720660878451,15.3819,141.4,141.32,17.32586431]
[1720660878654,11.81,141.39,141.34,11.98]
[1720660878835,11.81,141.39,141.35,45.97226525]
[1720660879035,11.81,141.39,141.36,0.63222055]
[1720660879265,11.81,141.4,141.36,1.41444391]
[1720660879554,6.3238,141.43,141.36,1.41444391]
[1720660879757,11.81,141.4,141.36,1.41444391]
[1720660880333,16.0539,141.44,141.37,11.81]
[1720660880553,6.2113,141.47,141.39,7.0725]
[1720660880878,6.2113,141.47,141.4,46.58386742]
[1720660881237,6.2113,141.47,141.4,1.58386742]
[1720660881973,6.2113,141.47,141.4,1.41386742]
[1720660884065,23.59,141.46,141.4,1.41386742]
[1720660884442,23.59,141.46,141.36,7.0741]
[1720660884655,23.59,141.46,141.37,1.58378151]
[1720660884970,23.59,141.46,141.38,1.41368151]
[1720660885566,23.59,141.46,141.35,0.17]
[1720660885866,23.59,141.46,141.37,7.0733]
[1720660886044,23.59,141.46,141.38,0.17]
[1720660886243,23.59,141.46,141.36,7.074]
[1720660886449,23.59,141.46,141.37,0.17]
[1720660886776,23.59,141.46,141.37,52.2435]
[1720660886973,23.59,141.46,141.38,0.34]
[1720660887149,23.59,141.46,141.37,45.17]
[1720660887358,23.59,141.46,141.37,45.0]
[1720660887674,0.34,141.45,141.34,7.2451]
[1720660887850,0.34,141.45,141.35,0.17]
[1720660888249,0.34,141.45,141.35,7.2445]
[1720660888448,23.59,141.46,141.36,7.0739]
[1720660888966,23.59,141.46,141.37,45.17]
[1720660891542,23.59,141.46,141.37,0.17]
[1720660892454,0.34,141.45,141.36,45.0]
[1720660892776,0.34,141.45,141.37,1.41433432]
[1720660895184,6.4424,141.42,141.36,1.41433256]
[1720660895384,6.4424,141.42,141.31,285.6784]
[1720660895673,6.4424,141.42,141.31,27.6784]
[1720660895974,0.17,141.41,141.29,7.0771]
[1720660896170,0.17,141.39,141.28,15.1701]
[1720660896371,6.3768,141.38,141.25,15.1783]
[1720660897277,23.59,141.37,141.26,7.079]
[1720660897454,23.59,141.37,141.25,15.1783]
[1720660897455,0.34,141.36,141.25,22.2579]
[1720660898581,0.34,141.36,141.26,45.17]
[1720660898757,0.34,141.36,141.27,0.95601736]
[1720660898956,23.59,141.37,141.27,8.03451736]
[1720660899171,6.3768,141.38,141.28,45.34]
[1720660899475,6.3768,141.38,141.29,1.28752027]
[1720660899684,6.3768,141.38,141.3,1.11744118]
[1720660899859,6.3768,141.38,141.31,0.17]
[1720660900248,6.3768,141.38,141.3,45.0]
[1720660900447,6.3768,141.38,141.29,45.0]
[1720660900673,0.17,141.37,141.29,45.0]
[1720660900874,0.34,141.37,141.29,45.0]
[1720660901268,6.3768,141.38,141.29,45.0]
[1720660902184,0.17,141.37,141.29,45.0]
[1720660902475,0.34,141.37,141.29,45.0]
[1720660903582,40.1503,141.35,141.25,15.1783]
[1720660903792,6.2068,141.34,141.24,7.0797]
[1720660903957,6.2068,141.34,141.23,7.0805]
[1720660904282,6.2068,141.34,141.21,40.0026]
[1720660904493,6.2068,141.34,141.23,7.0802]
[1720660904654,6.2068,141.34,141.24,7.0801]
[1720660905074,6.2068,141.34,141.22,7.0807]
[1720660905266,0.34,141.33,141.22,7.0807]
[1720660906590,0.34,141.33,141.23,45.17]
[1720660907489,0.34,141.33,141.23,0.17]
[1720660907665,23.59,141.32,141.24,0.81442455]
[1720660908287,23.59,141.32,141.23,0.17]
[1720660908487,23.59,141.32,141.22,0.17]
[1720660908989,23.59,141.32,141.22,52.421]
[1720660909362,23.59,141.32,141.23,7.0805]
[1720660909679,23.59,141.32,141.24,45.0]
[1720660910403,23.59,141.32,141.25,1.00025672]
[1720660912291,23.59,141.32,141.23,45.0]
[1720660912491,23.59,141.32,141.22,45.34]
[1720660914182,23.59,141.32,141.23,1.41558912]
[1720660914388,23.59,141.32,141.24,0.17]
[1720660914698,23.59,141.32,141.24,46.58548889]
[1720660915517,23.59,141.32,141.25,0.17]
[1720660915709,6.2068,141.34,141.25,1.75528882]
[1720660915887,6.2068,141.34,141.26,0.17]
[1720660916097,6.2068,141.34,141.27,1.41508845]
[1720660916907,6.2068,141.34,141.27,0.17]
[1720660917286,6.2068,141.34,141.26,45.17]
[1720660917487,6.2068,141.34,141.25,0.17]
[1720660917488,6.2068,141.34,141.25,45.0]
[1720660917905,15.1774,141.33,141.21,40.0026]
[1720660918110,6.5293,141.31,141.21,16.4126]
[1720660918913,6.5293,141.31,141.21,23.494]
[1720660919299,6.5293,141.31,141.22,45.51]
[1720660920424,6.5293,141.31,141.22,52.591]
[1720660920727,6.5293,141.31,141.24,7.0801]
[1720660921029,6.5293,141.31,141.25,0.17]
[1720660921318,6.5293,141.31,141.25,45.0]
[1720660921696,6.5293,141.31,141.24,45.0]
[1720660921910,6.5293,141.31,141.25,0.34]
[1720660922197,6.5293,141.31,141.25,7.4195]
[1720660922410,6.5293,141.31,141.26,45.17]
[1720660924215,6.5293,141.31,141.26,0.17]
[1720660924728,6.5293,141.31,141.25,45.0]
[1720660925123,6.5293,141.31,141.21,23.4941]
[1720660925299,6.5293,141.31,141.22,7.0809]
[1720660926004,6.5293,141.31,141.23,7.0806]
[1720660926511,6.5293,141.31,141.24,45.17]
[1720660926697,6.5293,141.31,141.25,0.17]
[1720660926897,6.5293,141.31,141.25,0.34]
[1720660927099,6.5293,141.31,141.24,52.2499]
[1720660927326,6.5293,141.31,141.24,45.17]
[1720660927923,6.5293,141.31,141.24,0.17]
[1720660928303,6.5293,141.31,141.24,0.34]
[1720660929719,6.5293,141.31,141.25,1.06851933]
[1720660930215,6.5293,141.31,141.24,0.34]
[1720660930626,6.5293,141.31,141.24,7.4199]
[1720660930819,6.5293,141.31,141.25,46.41539625]
[1720660931330,6.5293,141.31,141.24,45.34]
[1720660931533,6.5293,141.31,141.24,0.34]
[1720660935021,6.5293,141.31,141.24,0.17]
[1720660935434,6.5293,141.31,141.23,45.0]
[1720660935629,6.5293,141.31,141.22,45.17]
[1720660936612,15.8085,141.3,141.21,7.0815]
[1720660937111,15.8085,141.3,141.2,7.0819]
[1720660938036,15.8085,141.3,141.21,0.51]
[1720660938257,15.8085,141.3,141.21,45.51]
[1720660938537,15.8085,141.3,141.23,0.17]
[1720660938709,15.8085,141.3,141.23,0.51]
[1720660939142,15.8085,141.3,141.22,52.0809]
[1720660939517,15.8085,141.3,141.23,0.17]
[1720660939717,15.8085,141.3,141.22,45.0]
[1720660940242,15.8085,141.3,141.22,52.0811]
[1720660940430,15.8085,141.3,141.23,7.2506]
[1720660940641,15.8085,141.3,141.24,45.0]
[1720660941524,15.8085,141.3,141.23,45.17]
[1720660942548,11.82,141.29,141.24,11.82]
[1720660942744,11.82,141.29,141.25,45.0]
[1720660943245,11.82,141.29,141.26,1.41240486]
[1720660943443,15.8085,141.3,141.27,1.41230488]
[1720660943742,27.6285,141.3,141.27,1.41230488]
[1720660944346,27.6285,141.3,141.26,1.41230488]
[1720660944549,27.6285,141.3,141.27,1.4122049]
[1720660944844,27.6285,141.3,141.26,1.4154876]
[1720660945045,15.8085,141.3,141.27,1.4153874]
[1720660945551,6.5293,141.31,141.28,0.17]
[1720660945750,22.2248,141.36,141.31,7.0762]
[1720660945952,22.2248,141.36,141.32,57.26806581]
[1720660946272,22.2248,141.36,141.33,0.47056199]
[1720660947750,22.2248,141.36,141.33,1.41478475]
[1720660952545,21.6796,141.41,141.33,1.41478475]
[1720660957144,21.6796,141.41,141.34,0.17]
[1720660957462,21.6796,141.41,141.34,0.34]
[1720660957762,21.6796,141.41,141.35,1.41443128]
[1720660957938,21.6796,141.41,141.36,1.41433122]
[1720660960445,6.2745,141.41,141.36,1.41433122]
[1720660960763,6.2745,141.41,141.36,46.41433122]
[1720660960960,6.2745,141.41,141.36,1.41433122]
[1720660963073,15.8883,141.4,141.3,15.664]
[1720660963865,15.8883,141.4,141.3,22.7411]
[1720660964046,15.8883,141.4,141.3,15.664]
[1720660964966,15.8883,141.4,141.3,22.7411]
[1720660965377,15.8883,141.4,141.31,45.17]
[1720660966474,15.8883,141.4,141.32,0.17]
[1720660966663,11.81,141.37,141.32,11.98]
[1720660966878,11.81,141.37,141.33,45.0]
[1720660967874,11.81,141.36,141.32,45.17]
[1720660968064,11.81,141.37,141.32,45.17]
[1720660968666,11.81,141.37,141.32,56.98]
[1720660969175,11.81,141.37,141.32,45.0]
[1720660969383,11.81,141.35,141.32,45.0]
[1720660969679,11.81,141.35,141.31,0.17]
[1720660969680,11.81,141.35,141.31,45.17]
[1720660972564,6.229,141.36,141.31,45.17]
[1720660972763,11.81,141.34,141.3,45.17]
[1720660973476,11.81,141.34,141.31,0.52194189]
[1720660974280,11.81,141.35,141.31,0.52194189]
[1720660979591,6.229,141.36,141.31,0.52194189]
[1720660979770,11.81,141.34,141.31,0.52194189]
[1720660980588,11.81,141.35,141.31,0.52194189]
[1720660981798,11.81,141.34,141.31,0.52194189]
[1720660982001,11.81,141.35,141.31,0.52194189]
[1720660982972,11.81,141.34,141.3,45.0]
[1720660987395,11.81,141.33,141.3,45.0]
[1720660987583,11.81,141.32,141.27,11.81]
[1720660987783,11.81,141.32,141.28,45.17]
[1720660988090,11.81,141.32,141.28,45.0]
[1720660995200,6.229,141.36,141.3,11.81]
[1720660995395,11.81,141.36,141.31,63.8865]
[1720660995696,11.81,141.35,141.32,45.0]
[1720660996202,11.81,141.35,141.31,45.0]
[1720660996494,11.81,141.34,141.31,45.0]
[1720660996703,11.81,141.34,141.3,45.0]
[1720660999002,11.81,141.33,141.3,45.0]
[1720660999203,11.81,141.33,141.28,11.81]
[1720660999407,11.81,141.33,141.29,45.0]
[1720661000802,11.81,141.33,141.3,1.07882335]
[1720661004007,15.8921,141.33,141.22,328.77412686]
[1720661004313,11.81,141.29,141.23,11.81]
[1720661004608,11.81,141.28,141.23,11.81]
[1720661005392,11.81,141.29,141.23,11.81]
[1720661005591,11.81,141.29,141.23,7.0805]
[1720661005793,11.81,141.29,141.24,11.81]
[1720661006014,15.8921,141.33,141.24,11.81]
[1720661006192,11.81,141.29,141.24,11.81]
[1720661006593,11.81,141.29,141.25,45.0]
[1720661007891,11.81,141.28,141.25,45.0]
[1720661008099,11.81,141.28,141.24,45.0]
[1720661008995,11.81,141.29,141.24,56.81]
[1720661009195,15.8921,141.33,141.24,56.81]
[1720661009418,11.81,141.28,141.24,45.0]
[1720661009624,11.81,141.27,141.23,45.0]
[1720661012425,11.81,141.28,141.23,56.81]
[1720661012918,11.81,141.3,141.25,11.81]
[1720661013121,11.81,141.3,141.26,45.0]
[1720661014013,18.6682247,141.33,141.26,45.0]
[1720661014215,11.81,141.3,141.26,45.0]
[1720661018600,15.0734,141.37,141.28,11.98]
[1720661018828,15.0734,141.37,141.29,20.29760842]
[1720661019002,11.81,141.34,141.3,46.75010861]
[1720661019204,15.0734,141.37,141.3,58.56010861]
[1720661019413,11.81,141.35,141.3,58.56010861]
[1720661019712,15.0734,141.37,141.3,46.75010861]
[1720661019713,11.81,141.34,141.3,46.75010861]
[1720661019907,11.81,141.34,141.3,1.75010861]
[1720661020526,11.81,141.33,141.3,1.41010861]
[1720661020905,15.0734,141.37,141.3,1.41010861]
[1720661021107,15.0734,141.37,141.31,0.17]
[1720661021108,11.81,141.35,141.31,0.17]
[1720661021432,11.81,141.35,141.31,1.57990904]
[1720661021608,11.81,141.35,141.31,46.57990904]
[1720661023016,11.81,141.35,141.31,1.57990904]
[1720661023323,11.81,141.34,141.32,45.0]
[1720661023506,11.81,141.34,141.31,1.57990904]
[1720661024218,11.81,141.34,141.31,0.17]
[1720661024619,11.81,141.35,141.31,0.17]
[1720661026222,50.0982919,141.4,141.31,0.34]
[1720661026520,11.81,141.37,141.32,11.98]
[1720661026928,11.81,141.37,141.33,45.0]
[1720661027322,11.81,141.37,141.34,1.40868392]
[1720661029514,11.81,141.37,141.33,45.0]
[1720661029829,25.44065683,141.41,141.33,45.0]
[1720661029830,11.81,141.36,141.33,45.0]
[1720661031020,11.81,141.37,141.33,45.0]
[1720661038925,25.44065683,141.41,141.33,56.81]
[1720661039125,11.81,141.38,141.33,56.81]
[1720661039533,22.6173,141.41,141.34,0.17]
[1720661039727,11.81,141.39,141.34,11.98]
[1720661039930,22.6173,141.41,141.35,45.0]
[1720661040132,11.81,141.41,141.36,11.81]
[1720661040323,11.81,141.41,141.35,45.0]
[1720661040324,11.81,141.42,141.37,56.81]
[1720661040523,11.81,141.42,141.37,11.81]
[1720661040730,11.81,141.43,141.38,56.81]
[1720661041029,11.81,141.43,141.38,11.81]
[1720661041335,11.81,141.43,141.39,45.0]
[1720661041955,11.81,141.42,141.39,45.0]
[1720661042118,11.81,141.41,141.39,45.0]
[1720661043134,25.80751852,141.45,141.39,45.0]
[1720661043334,11.81,141.43,141.39,45.0]
[1720661044036,11.81,141.42,141.39,45.0]
[1720661044232,11.81,141.42,141.38,45.0]
[1720661044753,25.80751852,141.45,141.38,45.0]
[1720661044928,25.80751852,141.45,141.38,56.81]
[1720661045134,11.81,141.43,141.38,56.81]
[1720661045379,25.80751852,141.45,141.38,56.81]
[1720661045646,11.81,141.43,141.38,56.81]
[1720661046132,6.4406,141.48,141.39,11.98]
[1720661046336,1.56521874,141.51,141.42,7.2411]
[1720661046559,9.08100814,141.52,141.44,11.81]
[1720661046725,9.08100814,141.52,141.45,11.81]
[1720661047051,11.81,141.5,141.45,11.81]
[1720661047437,8.17771874,141.56,141.47,0.17]
[1720661047624,11.81,141.53,141.47,0.34]
[1720661047829,11.81,141.53,141.48,11.81]
[1720661048127,11.81,141.53,141.49,45.0]
[1720661048440,11.81,141.54,141.49,58.22312809]
[1720661048839,11.81,141.53,141.49,46.41312809]
[1720661049761,11.81,141.53,141.49,45.0]
[1720661050167,6.6125,141.56,141.5,11.81]
[1720661050374,11.81,141.55,141.51,45.0]
[1720661050558,18.12726122,141.57,141.51,45.0]
[1720661050870,11.81,141.55,141.51,45.0]
[1720661051161,18.12726122,141.57,141.51,45.0]
[1720661051162,11.81,141.54,141.51,45.0]
[1720661051360,11.81,141.54,141.5,45.0]
[1720661055155,11.81,141.54,141.51,0.17]
[1720661055347,11.81,141.55,141.51,0.34]
[1720661055552,11.81,141.56,141.51,12.15]
[1720661055774,6.6318,141.59,141.52,11.81]
[1720661055978,11.81,141.57,141.53,45.17]
[1720661056358,11.81,141.56,141.53,45.17]
[1720661056680,11.81,141.56,141.54,45.0]
[1720661056880,11.81,141.56,141.53,0.17]
[1720661061062,16.58,141.6,141.53,11.98]
[1720661061385,21.8032,141.63,141.57,11.81]
[1720661061554,11.81,141.63,141.58,45.17]
[1720661061756,11.81,141.63,141.58,56.98]
[1720661062085,6.181,141.66,141.58,56.98]
[1720661062385,11.81,141.63,141.58,56.98]
[1720661062787,6.181,141.66,141.59,12.15]
[1720661062990,6.181,141.66,141.59,0.17]
[1720661063193,11.81,141.63,141.58,45.17]
[1720661063675,11.81,141.62,141.58,45.17]
[1720661065985,19.23689024,141.67,141.59,0.17]
[1720661066191,11.81,141.64,141.59,12.15]
[1720661066399,19.23689024,141.67,141.59,11.98]
[1720661066400,11.81,141.63,141.59,11.98]
[1720661066578,11.81,141.63,141.6,45.0]
[1720661067675,11.81,141.63,141.58,11.98]
[1720661067676,11.81,141.63,141.59,45.17]
[1720661067885,11.81,141.64,141.6,0.17]
[1720661069290,19.23689024,141.67,141.59,45.0]
[1720661069291,11.81,141.62,141.59,45.0]
[1720661069703,11.81,141.62,141.58,45.17]
[1720661069910,11.81,141.61,141.58,45.0]
[1720661070103,0.17,141.66,141.57,45.17]
[1720661070104,11.81,141.6,141.57,45.17]
[1720661070314,11.81,141.6,141.56,45.0]
[1720661070988,11.81,141.58,141.52,6.4728]
[1720661071187,11.81,141.58,141.53,11.81]
[1720661071598,11.81,141.58,141.53,33.11]
[1720661071825,11.81,141.57,141.53,21.3]
[1720661072132,11.81,141.57,141.54,45.0]
[1720661072491,11.81,141.57,141.53,21.47]
[1720661072704,11.81,141.57,141.54,0.17]
[1720661073821,6.4206,141.63,141.54,0.17]
[1720661073992,11.81,141.59,141.55,21.3]
[1720661074192,11.81,141.59,141.56,45.17]
[1720661075098,11.81,141.59,141.56,45.0]
[1720661076327,11.81,141.57,141.52,21.3]
[1720661076632,11.81,141.55,141.52,21.3]
[1720661077130,11.81,141.55,141.49,7.0675]
[1720661077321,11.81,141.55,141.5,33.11]
[1720661077729,11.81,141.55,141.51,36.5794]
[1720661078627,11.81,141.55,141.52,45.51]
[1720661079545,11.81,141.55,141.52,45.0]
[1720661080131,11.81,141.56,141.52,66.3]
[1720661080317,11.81,141.57,141.53,0.17]
[1720661080517,11.81,141.57,141.53,0.51]
[1720661081947,11.81,141.56,141.53,0.17]
[1720661082116,11.81,141.56,141.52,45.0]
[1720661082447,62.636,141.61,141.48,21.2311]
[1720661082622,11.81,141.53,141.48,15.2102]
[1720661082981,11.81,141.52,141.48,15.2102]
[1720661083237,11.81,141.53,141.48,48.3202]
[1720661083838,26.9887,141.54,141.43,16.3813]
[1720661084127,11.81,141.5,141.46,21.3]
[1720661084927,26.9887,141.54,141.46,21.3]
[1720661085134,15.1787,141.54,141.47,66.47]
[1720661085333,6.6024,141.57,141.49,48.6713]
[1720661085536,6.6024,141.57,141.52,21.3]
[1720661085738,11.81,141.56,141.53,0.46465837]
[1720661086049,16.4234,141.58,141.53,45.46465837]
[1720661086050,11.81,141.57,141.53,45.46465837]
[1720661086230,11.81,141.56,141.53,45.46465837]
[1720661086652,11.81,141.55,141.53,45.46465837]
[1720661086960,11.81,141.55,141.54,0.46462554]
[1720661087127,11.81,141.55,141.53,0.46462554]
[1720661087325,11.81,141.55,141.52,45.17]
[1720661087533,11.81,141.55,141.53,0.17]
[1720661087740,11.81,141.55,141.53,45.17]
[1720661088137,11.81,141.56,141.53,45.17]
[1720661088336,23.0244,141.61,141.54,0.17]
[1720661088524,23.0244,141.61,141.54,21.64]
[1720661088848,29.9419,141.64,141.55,1.10086347]
[1720661089044,29.9419,141.64,141.56,0.17]
[1720661089243,6.4119,141.64,141.57,0.17]
[1720661089439,6.4119,141.64,141.57,1.44099759]
[1720661089843,6.4119,141.64,141.58,0.17]
[1720661090028,6.4119,141.64,141.58,1.44315748]
[1720661092447,6.4119,141.64,141.58,1.27315748]
[1720661092633,6.4119,141.64,141.58,1.10315748]
[1720661092836,6.4119,141.64,141.56,1.10315747]
[1720661093042,6.4119,141.64,141.57,0.17]
[1720661093241,6.4119,141.64,141.57,1.30041753]
[1720661094151,23.53,141.63,141.53,21.3]
[1720661095533,23.53,141.63,141.54,45.51]
[1720661095742,23.53,141.63,141.52,16.4201]
[1720661096031,0.17,141.62,141.52,16.4201]
[1720661096836,0.51,141.62,141.52,16.4201]
[1720661097043,20.51,141.62,141.52,16.4201]
[1720661098139,23.53,141.6,141.53,46.41274126]
[1720661099752,23.53,141.6,141.53,45.0]
[1720661101452,6.4119,141.64,141.53,66.3]
[1720661101655,6.4119,141.64,141.54,28.875]
[1720661101859,29.9419,141.64,141.54,28.875]
[1720661102048,29.9419,141.64,141.54,0.34]
[1720661102250,29.9419,141.64,141.54,0.17]
[1720661102746,29.9419,141.64,141.54,0.34]
[1720661102960,29.9419,141.64,141.55,0.17]
[1720661104758,23.53,141.61,141.53,45.0]
[1720661106064,23.53,141.61,141.54,0.17]
[1720661106851,23.53,141.61,141.53,45.0]
[1720661108359,6.4119,141.64,141.53,66.3]
[1720661108668,23.53,141.63,141.54,0.17]
[1720661109053,23.53,141.63,141.53,45.0]
[1720661109054,0.17,141.62,141.53,45.0]
[1720661110870,0.17,141.62,141.52,16.5901]
[1720661111071,0.17,141.62,141.43,399.7]
[1720661111072,23.53,141.6,141.48,273.9074]
[1720661111369,22.6358,141.56,141.48,15.9074]
[1720661112365,22.6358,141.56,141.48,37.2074]
[1720661112567,6.2874,141.59,141.5,21.3]
[1720661112771,6.2874,141.59,141.52,21.3]
[1720661112945,6.2874,141.59,141.53,0.17]
[1720661113147,6.2874,141.59,141.53,45.17]
[1720661113560,16.5108,141.6,141.53,45.17]
[1720661114154,16.5108,141.6,141.54,45.0]
[1720661114349,16.5108,141.6,141.52,45.0]
[1720661114860,6.4473,141.57,141.52,45.0]
[1720661119874,6.4473,141.57,141.48,37.2074]
[1720661120088,6.4473,141.57,141.48,15.9074]
[1720661120379,6.4473,141.57,141.48,22.9755]
[1720661120952,6.4473,141.57,141.49,21.3]
[1720661121171,6.4473,141.57,141.5,45.0]
[1720661121477,6.4473,141.57,141.49,45.0]
[1720661122262,6.4473,141.57,141.45,23.3098]
[1720661122471,23.53,141.55,141.45,16.2403]
[1720661123674,23.53,141.55,141.46,45.51]
[1720661124168,23.53,141.55,141.45,16.2403]
[1720661124371,0.17,141.54,141.45,16.2403]
[1720661124564,23.53,141.55,141.45,16.2403]
[1720661125071,23.53,141.55,141.45,37.5403]
[1720661125263,23.53,141.55,141.47,21.3]
[1720661125457,23.53,141.55,141.48,45.17]
[1720661127992,23.53,141.55,141.48,0.17]
[1720661130588,23.53,141.55,141.49,0.17]
[1720661130784,23.53,141.55,141.49,0.34]
[1720661132071,23.53,141.55,141.47,45.0]
[1720661132270,23.53,141.55,141.45,16.2403]
[1720661132271,23.53,141.55,141.46,45.17]
[1720661133276,23.53,141.55,141.47,0.17]
[1720661133483,23.53,141.55,141.47,0.34]
[1720661133788,23.53,141.55,141.48,0.17]
[1720661133990,23.53,141.55,141.49,0.17]
[1720661135985,23.53,141.55,141.48,0.34]
[1720661136291,23.53,141.55,141.47,0.34]
[1720661140599,11.78,141.52,141.47,11.95]
[1720661140818,22.4684,141.53,141.48,45.0]
[1720661140994,22.4684,141.53,141.46,45.17]
[1720661140995,11.78,141.49,141.46,45.0]
[1720661141314,11.78,141.49,141.45,45.17]
[1720661141606,11.78,141.49,141.45,66.47]
[1720661141803,11.78,141.5,141.45,78.25]
[1720661142304,22.4684,141.53,141.47,21.3]
[1720661142604,22.4684,141.53,141.48,45.0]
[1720661142780,22.4684,141.53,141.49,1.41324072]
[1720661148592,6.6304,141.53,141.49,1.41324072]
[1720661149298,46.4928,141.56,141.49,1.41324072]
[1720661153089,46.4928,141.56,141.5,0.17]
[1720661153296,22.9328,141.56,141.5,1.92288324]
[1720661154103,6.0559,141.59,141.51,15.5585]
[1720661154293,45.6361,141.63,141.54,21.3]
[1720661154493,45.6361,141.63,141.53,7.0654]
[1720661154494,23.56,141.66,141.57,16.6791]
[1720661154701,23.56,141.66,141.59,0.17]
[1720661154903,23.56,141.66,141.59,1.58177664]
[1720661155097,23.56,141.66,141.58,63.62177664]
[1720661155415,23.56,141.66,141.59,0.17]
[1720661156216,23.56,141.66,141.59,1.58192431]
[1720661156693,23.2890594,141.67,141.6,15.26355328]
[1720661156899,6.8453594,141.67,141.61,61.67527817]
[1720661157103,0.8393594,141.67,141.61,61.67527817]
[1720661157409,0.8393594,141.67,141.62,0.17]
[1720661157581,6.5304,141.75,141.66,22.49265328]
[1720661157781,23.56,141.79,141.69,0.17]
[1720661157782,1.41177664,141.78,141.69,0.17]
[1720661157988,1.41177664,141.78,141.7,15.26355328]
[1720661158208,6.5304,141.79,141.71,60.60355328]
[1720661158388,6.5304,141.79,141.71,60.26355328]
[1720661158389,7.94217664,141.79,141.71,60.26355328]
[1720661158695,7.94217664,141.79,141.72,0.17]
[1720661159387,7.94217664,141.79,141.71,60.26355328]
[1720661160108,31.50217664,141.79,141.71,45.0]
[1720661160297,31.50217664,141.79,141.7,45.0]
[1720661161409,23.56,141.77,141.7,45.0]
[1720661161597,1.41177664,141.76,141.7,45.0]
[1720661162315,1.41177664,141.78,141.71,21.25]
[1720661162608,7.94217664,141.79,141.72,66.42]
[1720661162914,7.94217664,141.79,141.72,21.42]
[1720661163100,7.94217664,141.79,141.73,45.0]
[1720661163707,1.41177664,141.8,141.73,66.25]
[1720661164307,2.25113604,141.81,141.73,66.25]
[1720661164695,2.25113604,141.81,141.74,0.17]
[1720661165119,2.25113604,141.81,141.73,66.25]